[Event "FIDE Women World Rapid 2024"]
[Site "New York"]
[Date "2024.12.27"]
[Round "8.24"]
[White "Sevcikova, Lucia"]
[Black "Kaldarova, Ayaulym"]
[Result "1-0"]
[ECO "A40"]
[WhiteElo "2060"]
[BlackElo "2144"]
[Annotator "ChessBase"]
[PlyCount "73"]
[EventDate "2024.12.14"]
[EventType "swiss"]
[EventCountry "USA"]
[SourceTitle "playchess.com"]
[Source "ChessBase"]
[SourceQuality "1"]
[TimeControl "900+10"]

1. d4 {[%emt 0:00:02]} e6 {[%emt 0:00:02]} 2. c4 {[%emt 0:00:03]} b6 {[%emt 0:00:02]} 3. Nc3 {[%emt 0:00:03]} Bb7 {[%emt 0:00:06]} 4. e4 {[%emt 0:00:09]} Bb4 {[%emt 0:00:04]} 5. Bd3 {[%emt 0:00:04]} f5 {[%emt 0:00:40]} 6. d5 {[%emt 0:02:02]} fxe4 {[%emt 0:00:06]} 7. Bxe4 {[%emt 0:00:19]} Nf6 {[%emt 0:00:01]} 8. Bf3 {[%emt 0:00:39]} O-O {[%emt 0:00:09]} 9. dxe6 {[%emt 0:01:21]} Bxf3 {[%emt 0:00:17]} 10. Nxf3 {[%emt 0:00:08]} dxe6 {[%emt 0:02:29]} 11. Qe2 {[%emt 0:00:48]} Bxc3+ {[%emt 0:01:01]} 12. bxc3 {[%emt 0:00:02]} Qe7 {[%emt 0:00:26]} 13. O-O {[%emt 0:00:13]} Nbd7 {[%emt 0:00:13]} 14. Nd4 {[%emt 0:00:26]} Rae8 {[%emt 0:00:16]} 15. Nc6 {[%emt 0:01:12]} Qc5 {[%emt 0:00:30]} 16. Nxa7 {[%emt 0:00:05]} c6 {[%emt 0:01:53]} 17. a4 {[%emt 0:00:45]} Qd6 {[%emt 0:00:58]} 18. a5 {[%emt 0:01:24]} bxa5 {[%emt 0:00:39]} 19. Ba3 {[%emt 0:02:08]} c5 {[%emt 0:00:25]} 20. Nb5 {[%emt 0:00:04]} Qc6 {[%emt 0:00:17]} 21. Rad1 {[%emt 0:00:44]} e5 {[%emt 0:01:05]} 22. Rd6 {[%emt 0:00:36]} Qc8 {[%emt 0:00:05]} 23. Rfd1 {[%emt 0:00:30]} e4 {[%emt 0:00:21]} 24. R6d2 {[%emt 0:03:02]} Re5 {[%emt 0:01:42]} 25. Bc1 {[%emt 0:00:30]} Qe8 {[%emt 0:00:49]} 26. Rd6 {[%emt 0:00:15]} Qf7 {[%emt 0:00:22]} 27. Bf4 {[%emt 0:00:19]} Re7 {[%emt 0:00:27]} 28. Bg3 {[%emt 0:00:42]} a4 {[%emt 0:03:06]} 29. Ra6 {[%emt 0:00:10]} Ne5 {[%emt 0:00:22]} 30. Bxe5 {[%emt 0:00:33]} Rxe5 {[%emt 0:00:01]} 31. Rxa4 {[%emt 0:00:06]} Qg6 {[%emt 0:00:03]} 32. Nc7 {[%emt 0:00:38]} Rg5 {[%emt 0:00:15]} 33. g3 {[%emt 0:00:14]} Ng4 {[%emt 0:00:01]} 34. Ra2 {[%emt 0:00:04]} Nxf2 {[%emt 0:00:32]} 35. Nd5 {[%emt 0:00:19]} Kh8 {[%emt 0:00:42]} 36. Qxf2 {[%emt 0:00:12]} Rxf2 {[%emt 0:00:04]} 37. Ra8+ {[%emt 0:00:03]} 1-0

[Event "FIDE Women World Rapid 2024"]
[Site "New York"]
[Date "2024.12.27"]
[Round "8.25"]
[White "Abrahamyan, Tatev"]
[Black "Kurmangaliyeva, Liya"]
[Result "1/2-1/2"]
[ECO "B30"]
[WhiteElo "2304"]
[BlackElo "2266"]
[Annotator "ChessBase"]
[PlyCount "104"]
[EventDate "2024.12.14"]
[EventType "swiss"]
[EventCountry "USA"]
[SourceTitle "playchess.com"]
[Source "ChessBase"]
[SourceQuality "1"]
[TimeControl "900+10"]

1. e4 {[%emt 0:00:02]} c5 {[%emt 0:00:03]} 2. Nf3 {[%emt 0:00:02]} Nc6 {[%emt 0:00:02]} 3. Bb5 {[%emt 0:00:06]} e6 {[%emt 0:00:02]} 4. b3 {[%emt 0:00:21]} Nge7 {[%emt 0:00:33]} 5. Bb2 {[%emt 0:00:31]} a6 {[%emt 0:00:50]} 6. Bxc6 {[%emt 0:00:16]} Nxc6 {[%emt 0:00:02]} 7. e5 {[%emt 0:00:13]} b5 {[%emt 0:00:52]} 8. d3 {[%emt 0:00:24]} Bb7 {[%emt 0:00:09]} 9. Nbd2 {[%emt 0:00:17]} Be7 {[%emt 0:00:52]} 10. Ne4 {[%emt 0:02:23]} Qc7 {[%emt 0:01:14]} 11. Qe2 {[%emt 0:00:26]} h6 {[%emt 0:00:43]} 12. h4 {[%emt 0:01:31]} O-O-O {[%emt 0:00:52]} 13. O-O-O {[%emt 0:01:21]} Qa5 {[%emt 0:01:51]} 14. Kb1 {[%emt 0:00:44]} Kb8 {[%emt 0:01:02]} 15. c4 {[%emt 0:02:21]} Ka8 {[%emt 0:00:41]} 16. cxb5 {[%emt 0:01:28]} axb5 {[%emt 0:01:03]} 17. Rc1 {[%emt 0:00:55]} Rc8 {[%emt 0:01:15]} 18. Nd6 {[%emt 0:02:11]} Bxd6 {[%emt 0:00:58]} 19. exd6 {[%emt 0:00:01]} f6 {[%emt 0:04:02]} 20. a3 {[%emt 0:01:17]} Qb6 {[%emt 0:00:15]} 21. Qe3 {[%emt 0:00:13]} Na7 {[%emt 0:00:16]} 22. b4 {[%emt 0:00:18]} Qxd6 {[%emt 0:00:05]} 23. bxc5 {[%emt 0:00:02]} Qd5 {[%emt 0:00:11]} 24. h5 {[%emt 0:00:18]} Nc6 {[%emt 0:00:17]} 25. Rh4 {[%emt 0:00:07]} e5 {[%emt 0:00:28]} 26. Rg4 {[%emt 0:00:46]} Rhg8 {[%emt 0:00:10]} 27. Nd2 {[%emt 0:00:04]} Ba6 {[%emt 0:00:16]} 28. Ka1 {[%emt 0:00:31]} Rb8 {[%emt 0:00:02]} 29. Qe4 {[%emt 0:00:22]} Qe6 {[%emt 0:00:07]} 30. Rg6 {[%emt 0:00:07]} Ka7 {[%emt 0:00:08]} 31. f4 {[%emt 0:00:05]} exf4 {[%emt 0:00:33]} 32. Qxf4 {[%emt 0:00:02]} Qd5 {[%emt 0:00:03]} 33. Qf3 {[%emt 0:00:32]} Qe6 {[%emt 0:00:13]} 34. Qg4 {[%emt 0:00:06]} Qf7 {[%emt 0:00:08]} 35. Bc3 {[%emt 0:00:13]} Rbe8 {[%emt 0:00:09]} 36. Ne4 {[%emt 0:00:09]} Qd5 {[%emt 0:00:24]} 37. Nd6 {[%emt 0:00:16]} Re7 {[%emt 0:00:02]} 38. Bb2 {[%emt 0:00:14]} b4 {[%emt 0:00:09]} 39. Qf3 {[%emt 0:00:10]} Qxf3 {[%emt 0:00:05]} 40. gxf3 {[%emt 0:00:01]} Bxd3 {[%emt 0:00:03]} 41. Rg3 {[%emt 0:00:05]} Re2 {[%emt 0:00:19]} 42. Bxf6 {[%emt 0:00:22]} bxa3 {[%emt 0:00:11]} 43. Bc3 {[%emt 0:00:01]} Rh2 {[%emt 0:00:19]} 44. f4 {[%emt 0:00:02]} Ba6 {[%emt 0:00:04]} 45. Be1 {[%emt 0:00:16]} Nd4 {[%emt 0:00:13]} 46. Rxa3 {[%emt 0:00:20]} Nc2+ {[%emt 0:00:02]} 47. Rxc2 {[%emt 0:00:01]} Rxc2 {[%emt 0:00:01]} 48. Bc3 {[%emt 0:00:08]} Rb8 {[%emt 0:00:27]} 49. Bd4 {[%emt 0:00:23]} Rc1+ {[%emt 0:00:15]} 50. Ka2 {[%emt 0:00:01]} Rc2+ {[%emt 0:00:01]} 51. Ka1 {[%emt 0:00:01]} Rc1+ {[%emt 0:00:00]} 52. Ka2 {[%emt 0:00:00]} Rc2+ {[%emt 0:00:29]} 1/2-1/2

[Event "FIDE Women World Rapid 2024"]
[Site "New York"]
[Date "2024.12.27"]
[Round "8.25"]
[White "Berezovsky, Fiorina"]
[Black "Lu, Miaoyi"]
[Result "0-1"]
[ECO "D38"]
[WhiteElo "1796"]
[BlackElo "2441"]
[Annotator "ChessBase"]
[PlyCount "92"]
[EventDate "2024.12.14"]
[EventType "swiss"]
[EventCountry "USA"]
[SourceTitle "playchess.com"]
[Source "ChessBase"]
[SourceQuality "1"]
[TimeControl "900+10"]

1. c4 {[%emt 0:00:01]} Nf6 {[%emt 0:00:24]} 2. Nc3 {[%emt 0:00:04]} e6 {[%emt 0:00:04]} 3. d4 {[%emt 0:00:12]} Bb4 {[%emt 0:00:04]} 4. Nf3 {[%emt 0:00:07]} d5 {[%emt 0:00:29]} 5. cxd5 {[%emt 0:00:17]} exd5 {[%emt 0:00:01]} 6. Bg5 {[%emt 0:00:11]} h6 {[%emt 0:00:25]} 7. Bh4 {[%emt 0:00:03]} O-O {[%emt 0:00:21]} 8. Qb3 {[%emt 0:00:27]} c5 {[%emt 0:02:12]} 9. a3 {[%emt 0:01:02]} Bxc3+ {[%emt 0:01:56]} 10. bxc3 {[%emt 0:00:06]} c4 {[%emt 0:02:00]} 11. Qc2 {[%emt 0:00:01]} g5 {[%emt 0:00:43]} 12. Bg3 {[%emt 0:00:07]} Ne4 {[%emt 0:00:01]} 13. Rc1 {[%emt 0:02:03]} Bf5 {[%emt 0:01:09]} 14. Qb2 {[%emt 0:00:18]} Nc6 {[%emt 0:01:00]} 15. Nd2 {[%emt 0:01:14]} Nxd2 {[%emt 0:00:25]} 16. Qxd2 {[%emt 0:00:03]} Na5 {[%emt 0:00:05]} 17. Qb2 {[%emt 0:00:25]} Qb6 {[%emt 0:01:03]} 18. Qxb6 {[%emt 0:00:43]} axb6 {[%emt 0:00:01]} 19. Bd6 {[%emt 0:00:02]} Rfd8 {[%emt 0:00:07]} 20. Bb4 {[%emt 0:00:27]} Nb3 {[%emt 0:00:13]} 21. Rd1 {[%emt 0:00:30]} Bc2 {[%emt 0:00:02]} 22. Rd2 {[%emt 0:00:18]} Nxd2 {[%emt 0:00:22]} 23. Kxd2 {[%emt 0:00:01]} Be4 {[%emt 0:00:31]} 24. f3 {[%emt 0:00:25]} Bg6 {[%emt 0:00:08]} 25. h4 {[%emt 0:00:09]} Re8 {[%emt 0:00:29]} 26. h5 {[%emt 0:00:28]} Bh7 {[%emt 0:00:05]} 27. g3 {[%emt 0:00:21]} g4 {[%emt 0:01:44]} 28. f4 {[%emt 0:00:44]} Re6 {[%emt 0:02:02]} 29. Bg2 {[%emt 0:01:26]} Rae8 {[%emt 0:00:02]} 30. Bf1 {[%emt 0:00:20]} f6 {[%emt 0:01:26]} 31. Rg1 {[%emt 0:00:09]} Re3 {[%emt 0:00:22]} 32. Kd1 {[%emt 0:00:16]} Kf7 {[%emt 0:00:16]} 33. Kd2 {[%emt 0:00:03]} Bf5 {[%emt 0:00:10]} 34. Rg2 {[%emt 0:00:25]} Bd7 {[%emt 0:00:13]} 35. Rg1 {[%emt 0:00:10]} R8e4 {[%emt 0:00:09]} 36. Ke1 {[%emt 0:01:17]} Ke6 {[%emt 0:00:08]} 37. Kf2 {[%emt 0:00:13]} Ba4 {[%emt 0:00:07]} 38. Rg2 {[%emt 0:01:01]} Kf5 {[%emt 0:00:14]} 39. Ke1 {[%emt 0:00:48]} Be8 {[%emt 0:00:09]} 40. Rh2 {[%emt 0:00:54]} Rxg3 {[%emt 0:00:09]} 41. Bg2 {[%emt 0:00:00]} Rxf4 {[%emt 0:00:15]} 42. Bxd5 {[%emt 0:00:34]} Rg1+ {[%emt 0:00:01]} 43. Kd2 {[%emt 0:00:04]} g3 {[%emt 0:00:02]} 44. Rh3 {[%emt 0:00:13]} Kg4 {[%emt 0:00:06]} 45. Be6+ {[%emt 0:00:14]} f5 {[%emt 0:00:01]} 46. Bd6 {[%emt 0:00:27]} Rff1 {[%emt 0:00:13]} 0-1

[Event "FIDE Women World Rapid 2024"]
[Site "New York"]
[Date "2024.12.27"]
[Round "8.26"]
[White "Toncheva, Nadya"]
[Black "Dzagnidze, Nana"]
[Result "1/2-1/2"]
[ECO "B22"]
[WhiteElo "2298"]
[BlackElo "2518"]
[Annotator "ChessBase"]
[PlyCount "123"]
[EventDate "2024.12.14"]
[EventType "swiss"]
[EventCountry "USA"]
[SourceTitle "playchess.com"]
[Source "ChessBase"]
[SourceQuality "1"]
[TimeControl "900+10"]

1. e4 {[%emt 0:00:02]} c5 {[%emt 0:00:05]} 2. c3 {[%emt 0:00:02]} Nf6 {[%emt 0:00:22]} 3. e5 {[%emt 0:00:01]} Nd5 {[%emt 0:00:02]} 4. Nf3 {[%emt 0:00:02]} Nc6 {[%emt 0:00:28]} 5. Bc4 {[%emt 0:00:02]} Nb6 {[%emt 0:00:11]} 6. Bb3 {[%emt 0:00:02]} d5 {[%emt 0:01:15]} 7. exd6 {[%emt 0:00:02]} Qxd6 {[%emt 0:00:10]} 8. O-O {[%emt 0:00:02]} Be6 {[%emt 0:00:11]} 9. Bxe6 {[%emt 0:00:01]} Qxe6 {[%emt 0:00:01]} 10. a4 {[%emt 0:00:02]} Qd7 {[%emt 0:01:00]} 11. a5 {[%emt 0:00:02]} Nd5 {[%emt 0:00:10]} 12. d4 {[%emt 0:00:10]} cxd4 {[%emt 0:01:07]} 13. Nxd4 {[%emt 0:00:08]} e6 {[%emt 0:00:23]} 14. a6 {[%emt 0:00:33]} b6 {[%emt 0:00:22]} 15. Nxc6 {[%emt 0:00:38]} Qxc6 {[%emt 0:00:02]} 16. Qg4 {[%emt 0:00:46]} h5 {[%emt 0:03:53]} 17. Qe2 {[%emt 0:00:01]} Be7 {[%emt 0:00:33]} 18. Na3 {[%emt 0:00:12]} Bxa3 {[%emt 0:00:34]} 19. Rxa3 {[%emt 0:00:02]} Rc8 {[%emt 0:00:00]} 20. Rd1 {[%emt 0:00:53]} h4 {[%emt 0:02:24]} 21. h3 {[%emt 0:00:12]} g6 {[%emt 0:00:09]} 22. Qe4 {[%emt 0:02:35]} Rh5 {[%emt 0:00:07]} 23. Ra4 {[%emt 0:01:25]} Kf8 {[%emt 0:00:08]} 24. Rad4 {[%emt 0:00:58]} b5 {[%emt 0:00:06]} 25. Qf3 {[%emt 0:03:23]} Qxa6 {[%emt 0:00:22]} 26. Rg4 {[%emt 0:01:31]} Kg7 {[%emt 0:01:11]} 27. Rdd4 {[%emt 0:00:18]} Rc4 {[%emt 0:02:40]} 28. Qd1 {[%emt 0:00:33]} Rxd4 {[%emt 0:00:10]} 29. Qxd4+ {[%emt 0:00:09]} Kg8 {[%emt 0:00:05]} 30. Bg5 {[%emt 0:02:15]} Qa1+ {[%emt 0:00:40]} 31. Kh2 {[%emt 0:00:02]} Qxb2 {[%emt 0:00:07]} 32. Qxa7 {[%emt 0:01:14]} Qxc3 {[%emt 0:00:15]} 33. Bxh4 {[%emt 0:00:53]} Qc7+ {[%emt 0:00:43]} 34. Qxc7 {[%emt 0:00:02]} Nxc7 {[%emt 0:00:01]} 35. Bf6 {[%emt 0:00:18]} Rf5 {[%emt 0:00:19]} 36. Bd4 {[%emt 0:00:08]} Nd5 {[%emt 0:00:18]} 37. Kg3 {[%emt 0:00:21]} Kf8 {[%emt 0:00:24]} 38. Re4 {[%emt 0:00:23]} Ke7 {[%emt 0:00:06]} 39. Bc5+ {[%emt 0:00:26]} Kd7 {[%emt 0:00:02]} 40. Bf8 {[%emt 0:00:29]} Kc6 {[%emt 0:00:17]} 41. f3 {[%emt 0:00:02]} Nf6 {[%emt 0:00:11]} 42. Rb4 {[%emt 0:00:07]} Nd7 {[%emt 0:00:11]} 43. Be7 {[%emt 0:00:04]} Nb6 {[%emt 0:00:02]} 44. Bf8 {[%emt 0:00:09]} Nc4 {[%emt 0:00:05]} 45. Kf2 {[%emt 0:00:11]} Rd5 {[%emt 0:00:03]} 46. g4 {[%emt 0:00:15]} Rd3 {[%emt 0:00:27]} 47. Kg3 {[%emt 0:00:34]} Ne5 {[%emt 0:00:16]} 48. Rf4 {[%emt 0:00:01]} f5 {[%emt 0:00:05]} 49. gxf5 {[%emt 0:00:06]} exf5 {[%emt 0:00:12]} 50. Be7 {[%emt 0:00:06]} Kd5 {[%emt 0:00:13]} 51. h4 {[%emt 0:00:06]} Ke6 {[%emt 0:00:10]} 52. Bf8 {[%emt 0:00:08]} Nc4 {[%emt 0:00:16]} 53. Bc5 {[%emt 0:00:17]} Ne5 {[%emt 0:00:12]} 54. Bf8 {[%emt 0:00:04]} Rb3 {[%emt 0:00:03]} 55. Kg2 {[%emt 0:00:14]} Rb2+ {[%emt 0:00:12]} 56. Kg3 {[%emt 0:00:03]} Rd2 {[%emt 0:00:08]} 57. Bb4 {[%emt 0:00:11]} Rc2 {[%emt 0:00:09]} 58. Bf8 {[%emt 0:00:19]} Nc6 {[%emt 0:00:03]} 59. Ba3 {[%emt 0:00:17]} Rc3 {[%emt 0:00:18]} 60. Bf8 {[%emt 0:00:06]} Rd3 {[%emt 0:00:01]} 61. Bc5 {[%emt 0:00:03]} Ne5 {[%emt 0:00:08]} 62. Bf8 {[%emt 0:00:36]} 1/2-1/2

[Event "FIDE Women World Rapid 2024"]
[Site "New York"]
[Date "2024.12.27"]
[Round "8.26"]
[White "Durrfeld, Sofie Bech"]
[Black "Derlich, Sarah Sima"]
[Result "0-1"]
[ECO "B23"]
[WhiteElo "1952"]
[BlackElo "1861"]
[Annotator "NA"]
[PlyCount "92"]
[EventDate "2024.12.14"]
[EventType "swiss"]
[EventCountry "USA"]
[SourceTitle "playchess.com"]
[Source "ChessBase"]
[SourceQuality "1"]
[TimeControl "900+10"]

1. e4 {[%emt 0:00:02]} c5 {[%emt 0:00:01]} 2. Nc3 {[%emt 0:00:01]} Nc6 {[%emt 0:00:41]} 3. Bb5 {[%emt 0:00:02]} g6 {[%emt 0:00:37]} 4. Bxc6 {[%emt 0:00:03]} dxc6 {[%emt 0:00:03]} 5. d3 {[%emt 0:00:05]} Bg7 {[%emt 0:00:12]} 6. Be3 {[%emt 0:00:08]} Bd4 {[%emt 0:02:06]} 7. Qd2 {[%emt 0:00:42]} Nf6 {[%emt 0:00:26]} 8. h3 {[%emt 0:01:03]} h5 {[%emt 0:00:48]} 9. Nf3 {[%emt 0:00:10]} b6 {[%emt 0:01:24]} 10. Rb1 {[%emt 0:01:39]} a5 {[%emt 0:00:59]} 11. Ne2 {[%emt 0:00:13]} Bxe3 {[%emt 0:01:13]} 12. Qxe3 {[%emt 0:00:08]} Ba6 {[%emt 0:00:10]} 13. Nf4 {[%emt 0:00:10]} Qc7 {[%emt 0:00:10]} 14. Ng5 {[%emt 0:00:10]} h4 {[%emt 0:00:10]} 15. e5 {[%emt 0:00:10]} Nd5 {[%emt 0:00:10]} 16. Nxd5 {[%emt 0:00:10]} cxd5 {[%emt 0:00:10]} 17. e6 {[%emt 0:00:10]} f6 {[%emt 0:02:59]} 18. Nf7 {[%emt 0:02:03]} Rh5 {[%emt 0:00:05]} 19. c4 {[%emt 0:02:13]} Bb7 {[%emt 0:00:10]} 20. Rd1 {[%emt 0:00:10]} d4 {[%emt 0:00:10]} 21. Qe2 {[%emt 0:00:10]} Qf4 {[%emt 0:04:34]} 22. Qg4 {[%emt 0:02:19]} Qxg4 {[%emt 0:00:10]} 23. hxg4 {[%emt 0:00:10]} Rh7 {[%emt 0:00:00]} 24. g5 {[%emt 0:00:07]} Bxg2 {[%emt 0:00:26]} 25. Rh2 {[%emt 0:00:19]} Bf3 {[%emt 0:00:23]} 26. Rd2 {[%emt 0:00:09]} Bg4 {[%emt 0:00:08]} 27. gxf6 {[%emt 0:00:02]} exf6 {[%emt 0:00:03]} 28. Nd6+ {[%emt 0:00:23]} Ke7 {[%emt 0:00:01]} 29. Nb5 {[%emt 0:00:15]} Kxe6 {[%emt 0:00:13]} 30. f4 {[%emt 0:00:35]} Rd8 {[%emt 0:00:26]} 31. Kf2 {[%emt 0:00:19]} Kf5 {[%emt 0:00:10]} 32. Kg1 {[%emt 0:00:25]} Kxf4 {[%emt 0:00:14]} 33. Rhf2+ {[%emt 0:00:25]} Kg5 {[%emt 0:00:03]} 34. Kh2 {[%emt 0:00:32]} f5 {[%emt 0:00:15]} 35. Rg2 {[%emt 0:00:26]} f4 {[%emt 0:00:16]} 36. Rdf2 {[%emt 0:00:20]} Re7 {[%emt 0:00:08]} 37. a3 {[%emt 0:00:09]} a4 {[%emt 0:00:25]} 38. Rd2 {[%emt 0:00:19]} Rdd7 {[%emt 0:00:10]} 39. Rdf2 {[%emt 0:00:05]} Re3 {[%emt 0:00:05]} 40. Rd2 {[%emt 0:00:13]} f3 {[%emt 0:00:13]} 41. Rgf2 {[%emt 0:00:04]} Kf4 {[%emt 0:00:03]} 42. Rf1 {[%emt 0:00:20]} Bf5 {[%emt 0:00:13]} 43. Rfd1 {[%emt 0:00:12]} g5 {[%emt 0:00:03]} 44. b4 {[%emt 0:00:39]} axb3 {[%emt 0:00:08]} 45. a4 {[%emt 0:00:02]} Re2+ {[%emt 0:00:11]} 46. Kg1 {[%emt 0:00:08]} Ke3 {[%emt 0:00:24]} 0-1

[Event "FIDE Women World Rapid 2024"]
[Site "New York"]
[Date "2024.12.27"]
[Round "8.27"]
[White "Narva, Mai"]
[Black "Padmini, Rout"]
[Result "0-1"]
[ECO "B85"]
[WhiteElo "2413"]
[BlackElo "2339"]
[Annotator "ChessBase"]
[PlyCount "152"]
[EventDate "2024.12.14"]
[EventType "swiss"]
[EventCountry "USA"]
[SourceTitle "playchess.com"]
[Source "ChessBase"]
[SourceQuality "1"]
[TimeControl "900+10"]

1. e4 {[%emt 0:00:03]} c5 {[%emt 0:00:01]} 2. Nf3 {[%emt 0:00:02]} e6 {[%emt 0:00:03]} 3. d4 {[%emt 0:00:05]} cxd4 {[%emt 0:00:04]} 4. Nxd4 {[%emt 0:00:00]} Nc6 {[%emt 0:00:01]} 5. Nc3 {[%emt 0:00:03]} Qc7 {[%emt 0:00:03]} 6. Be3 {[%emt 0:00:03]} a6 {[%emt 0:00:01]} 7. Be2 {[%emt 0:00:03]} Nf6 {[%emt 0:00:06]} 8. O-O {[%emt 0:00:04]} Be7 {[%emt 0:00:16]} 9. f4 {[%emt 0:00:05]} d6 {[%emt 0:00:02]} 10. Qe1 {[%emt 0:00:05]} O-O {[%emt 0:00:09]} 11. Qg3 {[%emt 0:00:03]} Bd7 {[%emt 0:00:34]} 12. Kh1 {[%emt 0:00:12]} Nxd4 {[%emt 0:00:23]} 13. Bxd4 {[%emt 0:00:02]} Bc6 {[%emt 0:00:03]} 14. Rae1 {[%emt 0:00:27]} b5 {[%emt 0:00:18]} 15. a3 {[%emt 0:00:05]} Qb7 {[%emt 0:00:37]} 16. Bd3 {[%emt 0:00:36]} Rad8 {[%emt 0:01:18]} 17. Qh3 {[%emt 0:01:34]} h6 {[%emt 0:01:51]} 18. Re3 {[%emt 0:05:56]} Kh8 {[%emt 0:00:26]} 19. e5 {[%emt 0:00:55]} dxe5 {[%emt 0:01:38]} 20. Bxe5 {[%emt 0:00:09]} Ng8 {[%emt 0:01:18]} 21. Rg3 {[%emt 0:03:44]} f6 {[%emt 0:00:25]} 22. Qg4 {[%emt 0:00:49]} Bc5 {[%emt 0:00:41]} 23. Qg6 {[%emt 0:00:14]} Rxd3 {[%emt 0:00:27]} 24. Qxd3 {[%emt 0:00:30]} fxe5 {[%emt 0:00:09]} 25. fxe5 {[%emt 0:00:03]} Rxf1+ {[%emt 0:00:27]} 26. Qxf1 {[%emt 0:00:02]} Bd4 {[%emt 0:00:44]} 27. Qf4 {[%emt 0:01:11]} Bxc3 {[%emt 0:00:27]} 28. bxc3 {[%emt 0:00:02]} Kh7 {[%emt 0:00:41]} 29. h3 {[%emt 0:02:01]} Be4 {[%emt 0:02:22]} 30. Qg4 {[%emt 0:00:42]} Bf5 {[%emt 0:00:10]} 31. Qb4 {[%emt 0:00:13]} Ne7 {[%emt 0:00:24]} 32. c4 {[%emt 0:00:06]} Nc6 {[%emt 0:00:34]} 33. Qc5 {[%emt 0:00:02]} bxc4 {[%emt 0:00:23]} 34. Qxc4 {[%emt 0:00:05]} Nxe5 {[%emt 0:00:15]} 35. Qd4 {[%emt 0:00:11]} Ng6 {[%emt 0:00:54]} 36. c4 {[%emt 0:00:15]} e5 {[%emt 0:00:23]} 37. Qd6 {[%emt 0:00:10]} Be4 {[%emt 0:01:47]} 38. Kh2 {[%emt 0:00:08]} Qf7 {[%emt 0:00:29]} 39. c5 {[%emt 0:00:22]} h5 {[%emt 0:00:03]} 40. Qd2 {[%emt 0:00:13]} Qf6 {[%emt 0:00:41]} 41. Qe3 {[%emt 0:00:10]} Bc6 {[%emt 0:00:08]} 42. Rg5 {[%emt 0:00:06]} h4 {[%emt 0:00:02]} 43. Rh5+ {[%emt 0:00:09]} Kg8 {[%emt 0:00:02]} 44. Qb3+ {[%emt 0:00:07]} Kf8 {[%emt 0:00:13]} 45. Qb8+ {[%emt 0:00:15]} Be8 {[%emt 0:00:04]} 46. c6 {[%emt 0:00:15]} Qf4+ {[%emt 0:00:24]} 47. Kh1 {[%emt 0:00:05]} Qc1+ {[%emt 0:00:06]} 48. Kh2 {[%emt 0:00:01]} Qf4+ {[%emt 0:00:17]} 49. Kh1 {[%emt 0:00:01]} Qc1+ {[%emt 0:00:10]} 50. Kh2 {[%emt 0:00:02]} Qxc6 {[%emt 0:00:12]} 51. Rf5+ {[%emt 0:00:35]} Ke7 {[%emt 0:00:06]} 52. Rf2 {[%emt 0:00:14]} e4 {[%emt 0:00:12]} 53. Qa7+ {[%emt 0:00:11]} Bd7 {[%emt 0:00:05]} 54. Rd2 {[%emt 0:00:11]} Ne5 {[%emt 0:00:15]} 55. Qd4 {[%emt 0:00:02]} Kf6 {[%emt 0:00:05]} 56. Rf2+ {[%emt 0:00:11]} Ke6 {[%emt 0:00:08]} 57. Re2 {[%emt 0:00:14]} Qd5 {[%emt 0:00:03]} 58. Qf2 {[%emt 0:00:14]} g5 {[%emt 0:00:10]} 59. Qf8 {[%emt 0:00:02]} Bc6 {[%emt 0:00:06]} 60. Qg8+ {[%emt 0:00:11]} Kf6 {[%emt 0:00:08]} 61. Qh7 {[%emt 0:00:14]} e3 {[%emt 0:00:16]} 62. Qc2 {[%emt 0:00:12]} Nc4 {[%emt 0:00:11]} 63. Kg1 {[%emt 0:00:08]} Qd4 {[%emt 0:00:05]} 64. Kh2 {[%emt 0:00:13]} Be4 {[%emt 0:00:07]} 65. Qa4 {[%emt 0:00:08]} Qd6+ {[%emt 0:00:06]} 66. Kg1 {[%emt 0:00:03]} Bd3 {[%emt 0:00:05]} 67. Re1 {[%emt 0:00:07]} e2 {[%emt 0:00:12]} 68. Qe8 {[%emt 0:00:03]} Ne5 {[%emt 0:00:16]} 69. Qh8+ {[%emt 0:00:17]} Kf5 {[%emt 0:00:04]} 70. Qc8+ {[%emt 0:00:19]} Qe6 {[%emt 0:00:20]} 71. Qf8+ {[%emt 0:00:06]} Kg6 {[%emt 0:00:01]} 72. Kh2 {[%emt 0:00:15]} Qf6 {[%emt 0:00:05]} 73. Qg8+ {[%emt 0:00:04]} Kh6 {[%emt 0:00:02]} 74. Kg1 {[%emt 0:00:05]} Qf1+ {[%emt 0:00:18]} 75. Kh2 {[%emt 0:00:05]} Nf3+ {[%emt 0:00:11]} 76. gxf3 {[%emt 0:00:06]} Qf2+ {[%emt 0:00:01]} 0-1

[Event "FIDE Women World Rapid 2024"]
[Site "New York"]
[Date "2024.12.27"]
[Round "8.27"]
[White "Lyutsinger, Iren"]
[Black "Stanford, Sheila Barth"]
[Result "1-0"]
[ECO "A00"]
[WhiteElo "2150"]
[BlackElo "2198"]
[Annotator "ChessBase"]
[PlyCount "21"]
[EventDate "2024.12.14"]
[EventType "swiss"]
[EventCountry "USA"]
[SourceTitle "playchess.com"]
[Source "ChessBase"]
[SourceQuality "1"]
[TimeControl "900+10"]

1. e4 {[%emt 0:00:01]} g6 {[%emt 0:00:02]} 2. d4 {[%emt 0:00:05]} Bg7 {[%emt 0:00:02]} 3. Nc3 {[%emt 0:00:02]} d5 {[%emt 0:00:02]} 4. Nf3 {[%emt 0:01:48]} dxe4 {[%emt 0:00:25]} 5. Nxe4 {[%emt 0:00:03]} Bg4 {[%emt 0:00:14]} 6. Bc4 {[%emt 0:00:30]} e6 {[%emt 0:00:36]} 7. O-O {[%emt 0:00:42]} Bxf3 {[%emt 0:01:04]} 8. Qxf3 {[%emt 0:00:02]} Qxd4 {[%emt 0:01:22]} 9. Bb5+ {[%emt 0:00:23]} Ke7 {[%emt 0:06:05]} 10. Be3 {[%emt 0:00:22]} Qd5 {[%emt 0:00:27]} 11. Bc5+ {[%emt 0:00:09]} 1-0